fUSD/lending_fUSD_20260224
["ID","MTS","AMOUNT","RATE_DAILY","PERIOD"]
[406550734,1771935040568,-549.94,0.00013698,2]
[406550735,1771935040577,-549.94,0.00013698,2]
[406550736,1771935040587,-549.94,0.00013698,2]
[406550737,1771935040596,-549.94,0.00013698,2]
[406550738,1771935040606,-549.94,0.00013698,2]
[406550739,1771935040615,-549.94,0.00013698,2]
[406550740,1771935040624,-549.94,0.00013698,2]
[406550741,1771935040634,-549.94,0.00013698,2]
[406550742,1771935040643,-549.94,0.00013698,2]
[406550743,1771935040652,-549.94,0.00013698,2]
[406550744,1771935040662,-500.0,0.00013698,2]
[406550745,1771935040673,-500.0,0.00013698,2]
[406550746,1771935040684,-500.0,0.00013698,2]
[406550747,1771935040694,-500.0,0.00013698,2]
[406550748,1771935040704,-500.0,0.00013698,2]
[406550749,1771935040715,-500.0,0.00013698,2]
[406550750,1771935040725,-500.0,0.00013698,2]
[406550751,1771935040735,-500.0,0.00013698,2]
[406550752,1771935040745,-500.0,0.00013698,2]
[406550753,1771935040755,-500.0,0.00013698,2]
[406550754,1771935040764,-500.0,0.00013698,2]
[406550755,1771935040774,-500.0,0.00013698,2]
[406550756,1771935040783,-500.0,0.00013698,2]
[406550757,1771935040793,-500.0,0.00013698,2]
[406550758,1771935040803,-510.28250517,0.00013698,2]
[406550759,1771935040812,-500.0,0.00013698,2]
[406550760,1771935040822,-500.0,0.00013698,2]
[406550761,1771935040831,-500.0,0.00013698,2]
[406550762,1771935040840,-500.0,0.00013698,2]
[406550763,1771935040850,-500.0,0.00013698,2]
[406550764,1771935040859,-500.0,0.00013698,2]
[406550765,1771935040870,-500.0,0.00013698,2]
[406550766,1771935040879,-500.0,0.00013698,2]
[406550767,1771935040888,-500.0,0.00013698,2]
[406550768,1771935040899,-500.0,0.00013698,2]
[406550769,1771935040909,-500.0,0.00013698,2]
[406550770,1771935040919,-500.0,0.00013698,2]
[406550771,1771935040930,-500.0,0.00013698,2]
[406550772,1771935040938,-574.86865068,0.00013698,2]
[406550773,1771935040948,-512.1,0.00013698,2]
[406550774,1771935040958,-512.1,0.00013698,2]
[406550775,1771935040968,-512.1,0.00013698,2]
[406550776,1771935040978,-512.1,0.00013698,2]
[406550777,1771935040988,-512.1,0.00013698,2]
[406550778,1771935040998,-512.1,0.00013698,2]
[406550779,1771935041008,-512.1,0.00013698,2]
[406550780,1771935041018,-512.1,0.00013698,2]
[406550781,1771935041028,-512.1,0.00013698,2]
[406550782,1771935041039,-512.1,0.00013698,2]
[406550783,1771935041051,-512.1,0.00013698,2]
[406550784,1771935041061,-512.1,0.00013698,2]
[406550785,1771935041070,-512.1,0.00013698,2]
[406550786,1771935041080,-512.1,0.00013698,2]
[406550787,1771935041089,-512.1,0.00013698,2]
[406550788,1771935041099,-512.1,0.00013698,2]
[406550789,1771935041110,-512.1,0.00013698,2]
[406550790,1771935041120,-512.1,0.00013698,2]
[406550791,1771935041129,-512.1,0.00013698,2]
[406550792,1771935041140,-500.0,0.00013698,2]
[406550793,1771935041151,-500.0,0.00013698,2]
[406550794,1771935041160,-500.0,0.00013698,2]
[406550795,1771935041171,-500.0,0.00013698,2]
[406550796,1771935041182,-500.0,0.00013698,2]
[406550797,1771935041191,-500.0,0.00013698,2]
[406550798,1771935041201,-500.0,0.00013698,2]
[406550799,1771935041210,-500.0,0.00013698,2]
[406550800,1771935041220,-395.88818611,0.00013698,2]
[406550801,1771935041232,-657.39,0.00013698,2]
[406550802,1771935041242,-657.39,0.00013698,2]
[406550803,1771935041252,-657.39,0.00013698,2]
[406550804,1771935041262,-657.39,0.00013698,2]
[406550805,1771935041272,-657.39,0.00013698,2]
[406550806,1771935041281,-657.39,0.00013698,2]
[406550807,1771935041290,-657.39,0.00013698,2]
[406550808,1771935041300,-657.39,0.00013698,2]
[406550809,1771935041310,-657.39,0.00013698,2]
[406550810,1771935041319,-657.39,0.00013698,2]
[406550811,1771935041328,-657.39,0.00013698,2]
[406550812,1771935041337,-657.39,0.00013698,2]
[406550813,1771935041347,-657.39,0.00013698,2]
[406550814,1771935041356,-657.39,0.00013698,2]
[406550815,1771935041365,-657.39,0.00013698,2]
[406550816,1771935041375,-657.39,0.00013698,2]
[406550817,1771935041385,-657.39,0.00013698,2]
[406550818,1771935041394,-657.39,0.00013698,2]
[406550819,1771935041404,-657.39,0.00013698,2]
[406550820,1771935041413,-500.0,0.00013698,2]
[406550821,1771935041422,-500.0,0.00013698,2]
[406550822,1771935041431,-500.0,0.00013698,2]
[406550823,1771935041441,-500.0,0.00013698,2]
[406550824,1771935041450,-501.58967205,0.00013698,2]
[406550825,1771935041459,-500.0,0.00013698,2]
[406550826,1771935041468,-514.97195478,0.00013698,2]
[406550827,1771935041478,-500.0,0.00013698,2]
[406550828,1771935041487,-500.0,0.00013698,2]
[406550829,1771935041497,-500.0,0.00013698,2]
[406550830,1771935041506,-500.0,0.00013698,2]
[406550831,1771935041516,-500.0,0.00013698,2]
[406550832,1771935041525,-500.0,0.00013698,2]
[406550833,1771935041535,-500.0,0.00013698,2]
[406550834,1771935041544,-500.0,0.00013698,2]
[406550835,1771935041553,-500.0,0.00013698,2]
[406550836,1771935041562,-500.0,0.00013698,2]
[406550837,1771935041571,-500.0,0.00013698,2]
[406550838,1771935041581,-500.0,0.00013698,2]
[406550839,1771935041590,-500.0,0.00013698,2]
[406550840,1771935041792,-500.0,0.00013698,2]
[406550841,1771935041801,-500.0,0.00013698,2]
[406550842,1771935041810,-500.0,0.00013698,2]
[406550843,1771935041819,-500.0,0.00013698,2]
[406550844,1771935041828,-500.0,0.00013698,2]
[406550845,1771935041837,-500.0,0.00013698,2]
[406550846,1771935041847,-500.0,0.00013698,2]
[406550847,1771935041856,-500.0,0.00013698,2]
[406550848,1771935041865,-500.0,0.00013698,2]
[406550849,1771935041874,-500.0,0.00013698,2]
[406550850,1771935041883,-500.0,0.00013698,2]
[406550851,1771935041891,-500.0,0.00013698,2]
[406550852,1771935041900,-500.0,0.00013698,2]
[406550853,1771935041910,-500.0,0.00013698,2]
[406550854,1771935041919,-500.0,0.00013698,2]
[406550855,1771935041928,-534.96315196,0.00013698,2]
[406550856,1771935041937,-566.19,0.00013698,2]
[406550857,1771935041946,-566.19,0.00013698,2]
[406550858,1771935041955,-566.19,0.00013698,2]
[406550859,1771935041963,-566.19,0.00013698,2]
[406550860,1771935041972,-566.19,0.00013698,2]
[406550861,1771935041981,-566.19,0.00013698,2]
[406550862,1771935041990,-566.19,0.00013698,2]
[406550863,1771935041999,-566.19,0.00013698,2]
[406550864,1771935042008,-566.19,0.00013698,2]
[406550865,1771935042016,-566.19,0.00013698,2]
[406550866,1771935042025,-566.19,0.00013698,2]
[406550867,1771935042034,-566.19,0.00013698,2]
[406550868,1771935042043,-566.19,0.00013698,2]
[406550869,1771935042052,-566.19,0.00013698,2]
[406550870,1771935042061,-566.19,0.00013698,2]
[406550871,1771935042071,-566.19,0.00013698,2]
[406550872,1771935042080,-566.19,0.00013698,2]
[406550873,1771935042089,-1423.69,0.00013698,2]
[406550874,1771935042098,-566.19,0.00013698,2]
[406550875,1771935042107,-1423.69,0.00013698,2]
[406550876,1771935042116,-566.19,0.00013698,2]
[406550877,1771935042125,-1423.69,0.00013698,2]
[406550878,1771935042135,-1423.69,0.00013698,2]
[406550879,1771935042146,-1423.69,0.00013698,2]
[406550880,1771935042155,-1423.69,0.00013698,2]
[406550881,1771935042165,-1423.69,0.00013698,2]
[406550882,1771935042174,-1423.69,0.00013698,2]
[406550883,1771935042184,-1423.69,0.00013698,2]
[406550884,1771935042193,-1423.69,0.00013698,2]
[406550885,1771935042203,-1423.69,0.00013698,2]
[406550886,1771935042212,-1423.69,0.00013698,2]
[406550887,1771935042222,-1423.69,0.00013698,2]
[406550888,1771935042231,-1423.69,0.00013698,2]
[406550889,1771935042240,-1423.69,0.00013698,2]
[406550890,1771935042251,-1423.69,0.00013698,2]
[406550892,1771935042261,-1423.69,0.00013698,2]
[406550893,1771935042270,-1423.69,0.00013698,2]
[406550894,1771935042279,-1423.69,0.00013698,2]
[406550895,1771935042288,-500.0,0.00013698,2]
[406550896,1771935042297,-500.0,0.00013698,2]
[406550897,1771935042306,-500.0,0.00013698,2]
[406550898,1771935042316,-500.0,0.00013698,2]
[406550900,1771935042325,-500.0,0.00013698,2]
[406550902,1771935042334,-500.0,0.00013698,2]
[406550903,1771935042344,-500.0,0.00013698,2]
[406550904,1771935042353,-500.0,0.00013698,2]
[406550906,1771935042362,-500.0,0.00013698,2]
[406550907,1771935042373,-500.0,0.00013698,2]
[406550908,1771935042383,-364.45426378,0.00013698,2]
[406550909,1771935042392,-500.0,0.00013698,2]
[406550910,1771935042402,-500.0,0.00013698,2]
[406550911,1771935042413,-500.0,0.00013698,2]
[406550912,1771935042422,-500.0,0.00013698,2]
[406550913,1771935042431,-500.0,0.00013698,2]
[406550914,1771935042441,-500.0,0.00013698,2]
[406550915,1771935042451,-500.0,0.00013698,2]
[406550917,1771935042460,-500.0,0.00013698,2]
[406550918,1771935042470,-500.0,0.00013698,2]
[406550919,1771935042479,-500.0,0.00013698,2]
[406550920,1771935042489,-500.0,0.00013698,2]
[406550921,1771935042499,-500.0,0.00013698,2]
[406550922,1771935042511,-500.0,0.00013698,2]
[406550923,1771935042520,-500.0,0.00013698,2]
[406550924,1771935042530,-222.44569411,0.00013698,2]
[406550925,1771935042539,-591.67,0.00013698,2]
[406550926,1771935042549,-591.67,0.00013698,2]
[406550927,1771935042558,-591.67,0.00013698,2]
[406550928,1771935042567,-591.67,0.00013698,2]
[406550929,1771935042577,-591.67,0.00013698,2]
[406550930,1771935042586,-591.67,0.00013698,2]
[406550931,1771935042595,-591.67,0.00013698,2]
[406550932,1771935042604,-591.67,0.00013698,2]
[406550933,1771935042614,-591.67,0.00013698,2]
[406550934,1771935042622,-591.67,0.00013698,2]
[406550935,1771935042631,-591.67,0.00013698,2]
[406550936,1771935042639,-591.67,0.00013698,2]
[406550937,1771935042647,-591.67,0.00013698,2]
[406550938,1771935042656,-591.67,0.00013698,2]
[406550939,1771935042665,-591.67,0.00013698,2]
[406550940,1771935042675,-591.67,0.00013698,2]
[406550941,1771935042687,-591.67,0.00013698,2]
[406550942,1771935042696,-591.67,0.00013698,2]
[406550943,1771935042706,-591.67,0.00013698,2]
[406550944,1771935042715,-917.0,0.00013698,2]
[406550945,1771935042724,-917.0,0.00013698,2]
[406550946,1771935042734,-917.0,0.00013698,2]
[406550947,1771935042744,-917.0,0.00013698,2]
[406550948,1771935042753,-917.0,0.00013698,2]
[406550949,1771935042764,-917.0,0.00013698,2]
[406550950,1771935042773,-917.0,0.00013698,2]
[406550951,1771935042782,-917.0,0.00013698,2]
[406550952,1771935042791,-917.0,0.00013698,2]
[406550953,1771935042801,-917.0,0.00013698,2]
[406550954,1771935042810,-917.0,0.00013698,2]
[406550955,1771935042819,-917.0,0.00013698,2]
[406550956,1771935042828,-917.0,0.00013698,2]
[406550957,1771935042837,-917.0,0.00013698,2]
[406550958,1771935042845,-917.0,0.00013698,2]
[406550959,1771935042856,-917.0,0.00013698,2]
[406550960,1771935042865,-917.0,0.00013698,2]
[406550961,1771935042875,-917.0,0.00013698,2]
[406550962,1771935042884,-917.0,0.00013698,2]
[406550963,1771935042893,-500.0,0.00013698,2]
[406550964,1771935042902,-500.0,0.00013698,2]
[406550965,1771935042912,-500.0,0.00013698,2]
[406550966,1771935042921,-500.0,0.00013698,2]
[406550967,1771935042931,-500.0,0.00013698,2]
[406550968,1771935042940,-500.0,0.00013698,2]
[406550969,1771935042949,-500.0,0.00013698,2]
[406550970,1771935042959,-500.0,0.00013698,2]
[406550971,1771935042968,-500.0,0.00013698,2]
[406550972,1771935042977,-500.0,0.00013698,2]
[406550973,1771935042986,-500.0,0.00013698,2]
[406550974,1771935042995,-500.0,0.00013698,2]
[406550975,1771935043004,-500.0,0.00013698,2]
[406550976,1771935043014,-500.0,0.00013698,2]
[406550977,1771935043023,-500.0,0.00013698,2]
[406550978,1771935043032,-500.0,0.00013698,2]
[406550979,1771935043042,-500.0,0.00013698,2]
[406550980,1771935043050,-620.42088911,0.00013698,2]
[406550981,1771935043060,-500.0,0.00013698,2]
[406550982,1771935043069,-500.0,0.00013698,2]
[406550983,1771935043078,-500.0,0.00013698,2]
[406550984,1771935043088,-500.0,0.00013698,2]
[406550985,1771935043098,-500.0,0.00013698,2]
[406550986,1771935043108,-500.0,0.00013698,2]
[406550987,1771935043117,-500.0,0.00013698,2]
[406550988,1771935043127,-500.0,0.00013698,2]
[406550989,1771935043135,-500.0,0.00013698,2]
[406550990,1771935043144,-500.0,0.00013698,2]
[406550991,1771935043152,-500.0,0.00013698,2]
[406550992,1771935043162,-500.0,0.00013698,2]
[406550993,1771935043170,-500.0,0.00013698,2]
[406550994,1771935043179,-500.0,0.00013698,2]
[406550996,1771935043187,-500.0,0.00013698,2]
[406550998,1771935043197,-500.0,0.00013698,2]
[406550999,1771935043207,-500.0,0.00013698,2]
[406551000,1771935043216,-500.0,0.00013698,2]
[406551001,1771935043225,-500.0,0.00013698,2]
[406551002,1771935043234,-177.32,0.00013699,2]
[406551003,1771935043243,-500.0,0.00013699,2]
[406551004,1771935043252,-500.0,0.00013699,2]
[406551005,1771935043261,-500.0,0.00013699,2]
[406551006,1771935043271,-500.0,0.00013699,2]
[406551007,1771935043280,-500.0,0.00013699,2]
[406551008,1771935043289,-500.0,0.00013699,2]
[406551009,1771935043300,-500.0,0.00013699,2]
[406551010,1771935043309,-504.28462668,0.00013699,2]
[406551011,1771935043318,-503.3459029,0.00013699,2]
[406551012,1771935043327,-509.0327441,0.00013699,2]
[406551013,1771935043337,-500.0,0.00013699,2]
[406551014,1771935043347,-500.0,0.00013699,2]
[406551015,1771935043356,-164.16786887,0.00013699,2]
[406551016,1771935043365,-500.0,0.00013699,2]
[406551017,1771935043375,-500.0,0.00013699,2]
[406551018,1771935043384,-162.13031906,0.00013699,2]
[406551019,1771935043393,-500.0,0.00013699,2]
[406551020,1771935043402,-487.94127816,0.00013699,2]
[406551021,1771935043411,-500.0,0.00013699,2]
[406551022,1771935043420,-500.0,0.00013699,2]
[406551023,1771935043430,-503.60394883,0.00013699,2]
[406551024,1771935043439,-209.6165406,0.00013699,2]
[406551025,1771935043448,-501.93759306,0.00013699,2]
[406551026,1771935043457,-500.0,0.00013699,2]
[406551027,1771935043466,-500.0,0.00013699,2]
[406551028,1771935043475,-511.18624479,0.00013699,2]
[406551029,1771935043484,-503.99220136,0.00013699,2]
[406551030,1771935043493,-304.38005979,0.00013699,2]
[406551031,1771935043502,-504.16390705,0.00013699,2]
[406551032,1771935043512,-170.38160206,0.00013699,2]
[406551033,1771935043520,-168.61283304,0.00013699,2]
[406551034,1771935043529,-501.44667058,0.00013699,2]
[406551035,1771935043539,-186.88471708,0.00013699,2]
[406551036,1771935043548,-599.206441,0.00013699,2]
[406551037,1771935043556,-150.0,0.000137,2]
[406551038,1771935043566,-4589.99,0.000137,2]
[406551039,1771935043574,-4589.99,0.000137,2]
[406551040,1771935043585,-4589.99,0.000137,2]
[406551041,1771935043594,-4589.99,0.000137,2]
[406551042,1771935043603,-4589.99,0.000137,2]
[406551043,1771935043611,-291.85083956,0.00013859,2]
[406551044,1771935043620,-871.93707751,0.00014168,2]
[406551045,1771935043629,-1276.82336401,0.00014168,2]
[406551046,1771935043639,-1500.0,0.00014168,2]
[406551047,1771935043647,-1500.0,0.00014168,2]
[406551048,1771935043656,-1500.0,0.00014168,2]
[406551049,1771935043665,-1500.0,0.00014168,2]
[406551050,1771935043675,-527.71923747,0.00014168,2]
[406551051,1771935043685,-502.25935248,0.00014247,2]
[406551052,1771935043696,-1000.0,0.00014247,2]
[406551053,1771935043705,-1000.0,0.00014247,2]
[406551054,1771935043714,-500.0,0.00014247,2]
[406551055,1771935043724,-501.53221813,0.00014247,2]
[406551056,1771935043734,-1000.0,0.00014247,2]
[406551057,1771935043744,-1028.84101903,0.00014247,2]
[406551058,1771935043753,-483.17728486,0.00014247,2]
[406551059,1771935043764,-1000.0,0.00014247,2]
[406551060,1771935043773,-1092.86766843,0.00014247,2]
[406551061,1771935043782,-436.95947364,0.00014247,2]
[406551062,1771935043791,-1000.0,0.00014247,2]
[406551063,1771935043800,-243.69912151,0.00014247,2]
[406551064,1771935043810,-583.60061699,0.00014247,2]
[406551065,1771935043819,-1000.0,0.00014247,2]
[406551066,1771935043829,-1000.0,0.00014247,2]
[406551067,1771935043839,-1000.0,0.00014256,2]
[406551068,1771935043848,-3347.098092,0.00014307,7]
[406551069,1771935043856,-1252.0,0.00014405,2]
[406551070,1771935043866,-4609.0,0.00014406,2]
[406551071,1771935043874,-1152.0,0.00014406,2]
[406551072,1771935043884,-500.0,0.00014591,4]
[406551073,1771935043894,-151.0,0.00014634,2]
[406551074,1771935043902,-151.0,0.00014634,2]
[406551075,1771935043910,-151.0,0.00014634,2]
[406551076,1771935043918,-151.0,0.00014634,2]
[406551077,1771935043926,-2000.0,0.00014716,2]
[406551078,1771935043934,-2000.0,0.00014716,2]
[406551079,1771935043942,-503.87713345,0.00014716,2]
[406551080,1771935043951,-2000.0,0.00014716,2]
[406551081,1771935043960,-1500.0,0.00014795,2]
[406551082,1771935043969,-1390.05507377,0.00014795,2]
[406551083,1771935043978,-1500.0,0.00014795,2]
[406551084,1771935043987,-602.53164684,0.00014795,2]
[406551085,1771935043996,-1500.0,0.00014795,2]
[406551086,1771935044005,-1500.0,0.00014795,2]
[406551087,1771935044015,-193.71551848,0.00014795,2]
[406551088,1771935044023,-4697.42439603,0.00014847,2]
[406551089,1771935044032,-694.7,0.00014853,2]
[406551090,1771935044085,-176.18400318,0.000149,2]
[406551091,1771935044095,-250.0,0.00015,2]
[406551092,1771935044103,-501.0,0.00015101,2]
[406551093,1771935044112,-374.73958587,0.00015264,2]
[406551094,1771935044121,-2500.0,0.00015264,2]
[406551095,1771935044129,-2500.0,0.00015264,2]
[406551096,1771935044138,-523.24,0.0001527,2]
[406551097,1771935044147,-858.26,0.0001527,2]
[406551098,1771935044156,-500.0,0.0001527,2]
[406551099,1771935044165,-503.05357398,0.00015342,2]
[406551100,1771935044174,-2000.0,0.00015342,2]
[406551101,1771935044183,-932.65135931,0.00015342,2]
[406551102,1771935044192,-215.42973367,0.00015801,2]
[406551103,1771935044201,-3000.0,0.00015812,2]
[406551104,1771935044210,-877.20909449,0.00015812,2]
[406551105,1771935044219,-173.87087054,0.00015813,2]
[406551106,1771935044229,-6453.0,0.00015847,2]
[406551107,1771935044238,-1613.0,0.00015847,2]
[406551108,1771935044248,-2129.0,0.00015852,2]
[406551109,1771935044259,-300.64393502,0.00015865,2]
[406551110,1771935044268,-1200.21212036,0.0001589,2]
[406551111,1771935044277,-461.89325126,0.00015911,2]
[406551112,1771935044286,-461.85,0.00015911,2]
[406551113,1771935044295,-461.85,0.00015911,2]
[406551114,1771935044304,-461.85,0.00015911,2]
[406551115,1771935044313,-380.32235674,0.00016,2]
[406551116,1771935044323,-2725.04997657,0.00016092,2]
[406551117,1771935044332,-380.32235674,0.000161,2]
[406551118,1771935044340,-9999.99,0.00016116,2]
[406551119,1771935044350,-27376.86086096,0.00016155,2]
[406551120,1771935044359,-380.32235674,0.000162,2]
[406551121,1771935044368,-474.12,0.00016221,2]
[406551122,1771935044378,-454.1749961,0.00016236,2]
[406551123,1771935044387,-3500.0,0.0001636,2]
[406551124,1771935044396,-454.1749961,0.00016397,2]
[406551125,1771935044405,-150.73989367,0.00016438,2]
[406551126,1771935044413,-474.12,0.00016495,2]
[406551127,1771935044422,-150.0,0.00016511,2]
[406551128,1771935044432,-454.1749961,0.00016558,2]
[406551129,1771935044441,-461.85,0.00016707,2]
[406551130,1771935044451,-461.85,0.00016707,2]
[406551131,1771935044460,-607.84,0.00016769,2]
[406551132,1771935044469,-620.70979822,0.00016908,2]
[406551133,1771935044479,-300.0,0.00017,2]
[406551134,1771935044489,-9035.0,0.00017431,2]
[406551135,1771935044499,-2258.0,0.00017431,2]
[406551136,1771935044508,-3301.0,0.00017436,2]
[406551137,1771935044517,-500.0,0.000175,5]
[406551138,1771935044527,-500.0,0.000175,5]
[406551139,1771935044536,-500.0,0.000175,3]
[406551140,1771935044545,-539.37,0.000175,3]
[406551141,1771935044554,-800.0,0.00017808,2]
[406551142,1771935044563,-200.0,0.00018128,2]
[406551143,1771935044572,-501.0,0.00018192,4]
[406551144,1771935044581,-150.0,0.000189,2]
[406551145,1771935044590,-800.0,0.00018904,2]
[406551146,1771935044600,-350.0,0.00019,2]
[406551147,1771935044609,-7809.895549,0.00019076,7]
[406551148,1771935044618,-173.87087054,0.000191,7]
[406551149,1771935044628,-10466.0,0.00019174,2]
[406551150,1771935044638,-3162.0,0.00019174,2]
[406551151,1771935044648,-500.0,0.00019266,5]
[406551152,1771935044658,-27376.86086096,0.00019361,2]
[406551153,1771935044667,-365.27,0.00019812,2]
[406551154,1771935044676,-4697.42439603,0.00019954,2]
[406551155,1771935044691,-427.28641969,0.00019999,2]
[406551156,1771935044700,-238.77093292,0.00019999,2]
[406551157,1771935044709,-500.0,0.00019999,2]
[406551158,1771935044719,-500.0,0.00019999,2]
[406551159,1771935044730,-500.0,0.00019999,2]
[406551160,1771935044739,-500.0,0.00019999,2]
[406551161,1771935044748,-178.33579031,0.00019999,2]
[406551162,1771935044758,-296.09,0.00020236,2]
[406551163,1771935044767,-912.0,0.00020548,2]
[406551164,1771935044775,-912.0,0.00020573,2]
[406551165,1771935044785,-912.0,0.00020884,2]
[406551166,1771935044793,-912.0,0.00020972,2]
[406551167,1771935044802,-912.0,0.00020977,2]
[406551168,1771935044812,-400.0,0.00021,2]
[406551169,1771935044822,-159.62910539,0.00021015,2]
[406551170,1771935044832,-912.0,0.00021059,2]
[406551171,1771935044843,-366.0,0.00021092,2]
[406551172,1771935044852,-912.0,0.00021174,2]
[406551173,1771935044861,-501.0,0.00021282,7]
[406551174,1771935044870,-912.0,0.0002131,2]
[406551175,1771935044879,-912.0,0.00021312,2]
[406551176,1771935044888,-912.0,0.00021375,2]
[406551177,1771935044898,-912.0,0.00021516,2]
[406551178,1771935044907,-912.0,0.00021552,2]
[406551179,1771935044916,-912.0,0.0002167,2]
[406551180,1771935044925,-300.64393502,0.00021789,2]
[406551181,1771935044934,-549.94,0.00021843,2]
[406551182,1771935044944,-549.94,0.00021843,2]
[406551183,1771935044953,-549.94,0.00021843,2]
[406551184,1771935044962,-549.94,0.00021843,2]
[406551185,1771935044971,-549.95461346,0.00021843,2]
[406551186,1771935044981,-512.1,0.00021843,2]
[406551187,1771935044990,-512.1,0.00021843,2]
[406551188,1771935044999,-512.1,0.00021843,2]
[406551189,1771935045009,-512.1,0.00021843,2]
[406551190,1771935045018,-512.33,0.00021843,2]
[406551191,1771935045028,-657.39,0.00021843,2]
[406551192,1771935045037,-657.39,0.00021843,2]
[406551193,1771935045046,-657.39,0.00021843,2]
[406551194,1771935045055,-657.39,0.00021843,2]
[406551195,1771935045064,-657.4566601,0.00021843,2]
[406551196,1771935045074,-566.19,0.00021843,2]
[406551197,1771935045084,-566.19,0.00021843,2]
[406551198,1771935045093,-566.19,0.00021843,2]
[406551199,1771935045103,-566.19,0.00021843,2]
[406551200,1771935045113,-566.42459131,0.00021843,2]
[406551201,1771935045122,-1423.69,0.00021843,2]
[406551202,1771935045132,-1423.69,0.00021843,2]
[406551203,1771935045141,-1423.69,0.00021843,2]
[406551204,1771935045150,-1423.69,0.00021843,2]
[406551205,1771935045159,-1423.74528268,0.00021843,2]
[406551206,1771935045169,-591.67,0.00021843,2]
[406551207,1771935045179,-591.67,0.00021843,2]
[406551208,1771935045188,-591.67,0.00021843,2]
[406551209,1771935045199,-591.67,0.00021843,2]
[406551210,1771935045209,-591.71706108,0.00021843,2]
[406551211,1771935045218,-917.0,0.00021843,2]
[406551212,1771935045227,-917.0,0.00021843,2]
[406551213,1771935045238,-917.0,0.00021843,2]
[406551214,1771935045248,-917.0,0.00021843,2]
[406551215,1771935045257,-917.17986232,0.00021843,2]
[406551216,1771935045266,-506.35812357,0.00021843,2]
[406551217,1771935045275,-5000.0,0.00021918,2]
[406551218,1771935045284,-912.0,0.00021987,2]
[406551219,1771935045294,-164.1,0.00022,2]
[406551220,1771935045303,-11053.13,0.00022,2]
[406551221,1771935045312,-912.0,0.0002204,2]
[406551222,1771935045322,-912.0,0.00022049,2]
[406551223,1771935045331,-912.0,0.00022095,2]
[406551224,1771935045340,-912.0,0.0002215,2]
[406551225,1771935045350,-912.0,0.00022184,2]
[406551226,1771935045359,-912.0,0.00022189,2]
[406551227,1771935045368,-912.0,0.00022248,2]
[406551228,1771935045377,-912.0,0.00022405,2]
[406551229,1771935045386,-912.0,0.00022505,2]
[406551230,1771935045395,-27376.86086096,0.00022568,2]
[406551231,1771935045404,-912.0,0.00022592,2]
[406551232,1771935045414,-912.0,0.00022602,2]
[406551233,1771935045423,-450.0,0.00023,2]
[406551234,1771935045432,-160.0,0.00023,2]
[406551235,1771935045441,-527.94,0.00023207,2]
[406551236,1771935045450,-500.0,0.00023215,9]
[406551237,1771935045459,-454.1749961,0.00024113,2]
[406551238,1771935045468,-501.0,0.00024372,10]
[406551239,1771935045478,-1000.0,0.00024658,2]
[406551240,1771935045487,-150.0,0.00024658,2]